bitfinex/quotes_BTCUSD_20240727
["timestamp","ask_amount","ask_price","bid_price","bid_amount"]
[1722104278395,0.0763,68894.0,68893.0,0.1633972]
[1722104278682,0.0763,68894.0,68893.0,0.145152]
[1722104278911,0.0763,68894.0,68893.0,0.16643059]
[1722104279120,0.0763,68894.0,68893.0,0.02127859]
[1722104279458,0.0763,68894.0,68893.0,0.02327859]
[1722104279459,0.22145,68894.0,68893.0,0.02327859]
[1722104279909,0.0763,68894.0,68893.0,0.16843059]
[1722104280115,0.0763,68894.0,68893.0,0.02327859]
[1722104280523,0.0763,68894.0,68893.0,0.16643059]
[1722104280724,0.0763,68894.0,68893.0,0.02127859]
[1722104280886,0.0763,68903.0,68893.0,0.19453816]
[1722104281092,0.0763,68903.0,68902.0,0.145133]
[1722104281296,0.0763,68914.0,68902.0,0.19149802]
[1722104281539,0.0763,68914.0,68913.0,0.435331]
[1722104281751,0.0763,68914.0,68903.0,0.15316182]
[1722104281752,0.0763,68914.0,68910.0,0.290232]
[1722104282101,0.0763,68914.0,68913.0,0.01818786]
[1722104282224,0.0763,68914.0,68912.0,0.145112]
[1722104282438,0.0763,68914.0,68913.0,0.01818786]
[1722104282679,0.0773,68914.0,68913.0,0.01818786]
[1722104283025,0.0773,68914.0,68913.0,0.16329786]
[1722104283229,0.0763,68914.0,68913.0,0.14511]
[1722104283430,0.0773,68914.0,68913.0,0.16329786]
[1722104283669,0.0773,68914.0,68913.0,0.45351886]
[1722104283887,0.0773,68914.0,68913.0,0.74473986]
[1722104283888,0.001,68914.0,68913.0,0.74473986]
[1722104284290,0.001,68914.0,68913.0,1.03496086]
[1722104284665,0.0763,68919.0,68918.0,0.435298]
[1722104285050,0.0763,68919.0,68918.0,0.74364814]
[1722104285701,0.0763,68919.0,68918.0,1.03384714]
[1722104285873,0.0763,68919.0,68918.0,0.74364814]
[1722104286513,0.07512979,68922.0,68921.0,0.725467]
[1722104286912,0.07512979,68922.0,68921.0,0.74360081]
[1722104288121,0.07512979,68922.0,68921.0,0.45941381]
[1722104288760,0.07512979,68922.0,68921.0,0.74960081]
[1722104288970,0.07512979,68922.0,68921.0,0.75660081]
[1722104289585,0.07512979,68922.0,68921.0,0.74960081]
[1722104289794,0.07512979,68922.0,68921.0,0.45941381]
[1722104289994,0.07512979,68922.0,68921.0,0.02413381]
[1722104290407,0.07512979,68922.0,68921.0,0.03113381]
[1722104290612,0.07512979,68922.0,68921.0,0.02513381]
[1722104290852,0.51040379,68922.0,68921.0,0.02513381]
[1722104291056,0.58660379,68922.0,68921.0,0.03213381]
[1722104291262,0.65070379,68922.0,68921.0,0.007]
[1722104291616,0.65070379,68922.0,68921.0,0.014]
[1722104291815,0.94993089,68922.0,68921.0,0.014]
[1722104292497,0.94993089,68922.0,68921.0,0.007]
[1722104292726,0.94993114,68922.0,68921.0,0.008]
[1722104293107,0.94993099,68922.0,68921.0,0.008]
[1722104293311,0.94993099,68922.0,68921.0,0.007]
[1722104293678,0.0762,68919.0,68913.0,0.290217]
[1722104293880,0.221299,68919.0,68913.0,0.290217]
[1722104294095,0.1451,68918.0,68914.0,0.145107]
[1722104294300,0.1451,68918.0,68915.0,0.01813738]
[1722104294920,0.145103,68917.0,68915.0,0.01813738]
[1722104295296,0.145103,68917.0,68913.0,0.145109]
[1722104295534,0.0762,68919.0,68914.0,0.01814194]
[1722104295735,0.0762,68919.0,68918.0,0.145099]
[1722104295736,0.0772,68919.0,68918.0,0.145099]
[1722104295959,0.0772,68919.0,68918.0,0.435298]
[1722104296120,0.0772,68919.0,68918.0,0.74362685]
[1722104296331,0.0762,68919.0,68918.0,0.74362685]
[1722104297479,0.0762,68919.0,68918.0,0.74862685]
[1722104297835,0.0762,68919.0,68918.0,0.75262685]
[1722104298748,0.0762,68924.0,68923.0,0.145088]
[1722104299078,0.0762,68924.0,68923.0,0.435266]
[1722104299234,0.0762,68924.0,68923.0,0.45337305]
[1722104299756,0.0762,68924.0,68923.0,0.16319505]
[1722104299959,0.0762,68924.0,68923.0,0.01810705]
[1722104300739,0.0762,68924.0,68923.0,0.16319605]
[1722104300940,0.0762,68924.0,68923.0,0.01810705]
[1722104301340,0.0762,68924.0,68918.0,0.290196]
[1722104301546,0.0762,68924.0,68913.0,0.29114]
[1722104301547,0.07512979,68922.0,68921.0,0.145093]
[1722104301764,0.07512979,68922.0,68921.0,0.43528]
[1722104302377,0.07512979,68922.0,68920.0,0.145095]
[1722104302582,0.07512979,68922.0,68919.0,0.290192]
[1722104302816,0.07512979,68922.0,68921.0,0.43528]
[1722104303556,0.07512979,68922.0,68921.0,0.726467]
[1722104303772,0.0762,68924.0,68923.0,0.435267]
[1722104305398,0.22137519,68929.0,68924.0,0.290173]
[1722104305399,0.07629819,68929.0,68924.0,0.290173]
[1722104305602,0.22137519,68929.0,68925.0,0.145084]
[1722104306820,0.07629819,68929.0,68926.0,0.01808305]
[1722104307019,0.07629819,68929.0,68926.0,0.16316505]
[1722104307447,0.00904275,68928.0,68926.0,0.16316505]
[1722104308259,0.07629819,68929.0,68926.0,0.01808305]
[1722104308561,0.00904256,68928.0,68927.0,0.14508]
[1722104308962,0.07629819,68929.0,68927.0,0.16315849]
[1722104309635,0.00904247,68928.0,68927.0,0.16315849]
[1722104310395,0.00904247,68928.0,68927.0,0.01807849]
[1722104310606,0.00904268,68928.0,68926.0,0.145082]
[1722104310818,0.00904268,68928.0,68927.0,0.01807849]
[1722104311203,0.07629819,68929.0,68927.0,0.01807849]
[1722104311428,0.00904277,68928.0,68927.0,0.16315949]
[1722104311844,0.00904277,68928.0,68927.0,0.45332149]
[1722104311974,0.07629819,68929.0,68928.0,0.145078]
[1722104312171,0.08534094,68929.0,68928.0,0.145078]
[1722104312370,0.08534094,68929.0,68928.0,0.16326289]
[1722104312569,0.08534094,68929.0,68928.0,0.01818489]
[1722104312904,0.08534094,68929.0,68927.0,0.145079]
[1722104313260,0.07629819,68929.0,68928.0,0.01818393]
[1722104313464,0.08534054,68929.0,68928.0,0.01818393]
[1722104315183,0.08534055,68929.0,68928.0,0.01818393]
[1722104315605,0.08534055,68929.0,68928.0,0.45341893]
[1722104315606,0.01021076,68929.0,68928.0,0.45341893]
[1722104316655,0.01021076,68929.0,68928.0,0.16326193]
[1722104317489,0.01021076,68929.0,68928.0,0.45341893]
[1722104318504,0.0011684,68929.0,68928.0,0.45341893]
[1722104319277,0.01021078,68929.0,68928.0,0.45341893]
[1722104319696,0.01021052,68929.0,68928.0,0.45341893]
[1722104321878,0.01021063,68929.0,68928.0,0.45341893]
[1722104322075,0.0011684,68929.0,68928.0,0.45341893]
[1722104322679,0.0011684,68929.0,68928.0,0.74357593]
[1722104322943,0.0011684,68929.0,68928.0,0.80887593]
[1722104324390,0.0011684,68929.0,68928.0,0.81487593]
[1722104324934,0.0011684,68929.0,68928.0,0.82087593]
[1722104326289,0.0011684,68929.0,68928.0,1.11103293]
[1722104327286,0.0011684,68929.0,68928.0,1.2842925]
[1722104329264,0.0011684,68929.0,68928.0,1.5744495]
[1722104329474,0.0011684,68929.0,68928.0,1.2842925]
[1722104329977,0.0011684,68929.0,68928.0,1.6744495]
[1722104331047,0.0011684,68929.0,68928.0,1.6624495]
[1722104331207,0.0011684,68929.0,68928.0,1.6714495]
[1722104331406,0.0011684,68929.0,68928.0,1.6804495]
[1722104331625,0.0011684,68929.0,68928.0,1.6714495]
[1722104331836,0.0011684,68929.0,68928.0,1.38107811]
[1722104332056,0.0011684,68929.0,68928.0,1.40907811]
[1722104332262,0.0011684,68929.0,68928.0,1.77533511]
[1722104333680,0.002,68939.0,68928.0,1.77533511]
[1722104333681,0.002,68939.0,68938.0,1.381617]
[1722104333879,0.002,68939.0,68938.0,1.59217657]
[1722104334127,0.002,68939.0,68938.0,1.6103558]
[1722104334548,0.00818,68945.0,68943.0,0.432847]
[1722104334750,0.00818,68945.0,68943.0,1.39037744]
[1722104334949,0.00818,68945.0,68943.0,0.84338787]
[1722104335110,0.00818,68945.0,68943.0,0.45329387]
[1722104335305,0.00818,68945.0,68943.0,0.74338787]
[1722104335566,0.00818,68945.0,68943.0,0.01815287]
[1722104335771,0.00818,68945.0,68938.0,0.290111]
[1722104335772,0.15418,68944.0,68940.0,0.145053]
[1722104335971,0.07512979,68939.0,68938.0,0.435172]
[1722104336272,0.07512979,68939.0,68938.0,0.725287]
[1722104336574,0.07512979,68939.0,68938.0,0.435172]
[1722104336727,0.07512979,68939.0,68938.0,0.4479601]
[1722104337111,0.07512979,68939.0,68938.0,0.4709601]
[1722104337411,0.07512979,68939.0,68938.0,0.7750751]
[1722104338059,0.15418,68944.0,68943.0,0.145047]
[1722104338300,0.09088,68944.0,68943.0,0.168047]
[1722104338632,0.09088,68944.0,68943.0,0.18081231]
[1722104339408,0.09088,68944.0,68943.0,0.47090631]
[1722104339929,0.00818,68944.0,68943.0,0.76100031]
[1722104340266,0.00818,68944.0,68943.0,0.77700031]
[1722104340618,0.00818,68944.0,68943.0,1.06709431]
[1722104340890,0.00818,68944.0,68943.0,1.21735388]
[1722104341606,0.00818,68944.0,68943.0,1.20135388]
[1722104341810,0.00818,68944.0,68943.0,1.21535388]
[1722104342026,0.00818,68944.0,68943.0,1.22935388]
[1722104342894,0.00818,68944.0,68943.0,0.78900031]
[1722104343446,0.00818,68944.0,68943.0,1.06509431]
[1722104343659,0.00818,68944.0,68943.0,1.07609431]
[1722104344015,0.00818,68944.0,68943.0,1.06209431]
[1722104344336,0.00818,68944.0,68943.0,1.06309431]
[1722104344465,0.00818,68944.0,68943.0,1.05509431]
[1722104344808,0.00818,68944.0,68943.0,1.05809431]
[1722104345464,0.00818,68944.0,68943.0,1.05409431]
[1722104345636,0.00818,68944.0,68943.0,1.05109431]
[1722104345852,0.00818,68944.0,68943.0,1.05809431]
[1722104346635,0.00818,68944.0,68943.0,1.20835388]
[1722104346839,0.00818,68944.0,68943.0,1.21535388]
[1722104347156,0.00818,68944.0,68943.0,1.20835388]
[1722104347304,0.00818,68944.0,68943.0,1.20135388]
[1722104347508,0.00818,68944.0,68943.0,1.21835388]
[1722104347710,0.00818,68944.0,68943.0,1.21035388]
[1722104348132,0.00818,68944.0,68943.0,1.21435388]
[1722104348328,0.00818,68944.0,68943.0,1.22835388]
[1722104348529,0.00818,68944.0,68943.0,1.06509431]
[1722104348840,0.00818,68944.0,68943.0,1.07509431]
[1722104349094,0.00818,68944.0,68943.0,1.06509431]
[1722104350326,0.00818,68944.0,68943.0,1.05109431]
[1722104350532,0.00818,68944.0,68943.0,1.06209431]
[1722104351116,0.00818,68944.0,68943.0,1.06309431]
[1722104351314,0.00818,68944.0,68943.0,1.06109431]
[1722104351717,0.00818,68944.0,68943.0,1.07109431]
[1722104351917,0.00818,68944.0,68943.0,1.05109431]
[1722104352172,0.00818,68944.0,68943.0,1.06209431]
[1722104352353,0.00818,68944.0,68943.0,1.07409431]
[1722104352558,0.00818,68944.0,68943.0,1.06209431]
[1722104352938,0.00818,68944.0,68943.0,1.07209431]
[1722104353585,0.00818,68944.0,68943.0,1.06109431]
[1722104353982,0.00818,68944.0,68943.0,1.07109431]
[1722104354204,0.00818,68944.0,68943.0,0.78100031]
[1722104354205,0.08778,68944.0,68943.0,0.78100031]
[1722104354404,0.08778,68944.0,68943.0,0.77100031]
[1722104354633,0.08778,68944.0,68943.0,0.02276531]
[1722104354634,0.877805,68944.0,68943.0,0.02276531]
[1722104354852,1.17693596,68944.0,68943.0,0.011]
[1722104355181,1.54215575,68944.0,68943.0,0.011]
[1722104355385,0.01722096,68944.0,68943.0,0.674641]
[1722104355598,0.01722096,68944.0,68943.0,0.964735]
[1722104355599,0.00818,68944.0,68943.0,0.964735]
[1722104355780,0.15258,68944.0,68943.0,0.44836176]
[1722104356096,0.15258,68944.0,68943.0,0.73945576]
[1722104356245,0.15258,68944.0,68943.0,0.01422076]
[1722104356449,0.15258,68944.0,68931.0,0.2905]
[1722104356450,0.15258,68944.0,68937.0,0.1]
[1722104356614,0.07512979,68938.0,68936.0,0.145061]
[1722104356827,0.15472979,68938.0,68937.0,0.023]
[1722104357210,0.15472979,68938.0,68931.0,0.290145]
[1722104357211,0.0648,68937.0,68932.0,0.023]
[1722104357410,0.0648,68937.0,68936.0,0.145062]
[1722104357610,0.0648,68937.0,68936.0,0.168062]
[1722104357860,0.0648,68937.0,68936.0,0.023]
[1722104358020,0.0648,68937.0,68936.0,0.145062]
[1722104358223,0.0648,68937.0,68936.0,0.168062]
[1722104358628,0.0648,68937.0,68936.0,0.023]
[1722104358832,0.289459,68937.0,68936.0,0.023]
[1722104359073,0.29850046,68937.0,68936.0,0.023]
[1722104359319,0.15344146,68937.0,68933.0,0.290136]
[1722104359600,0.07512979,68936.0,68934.0,0.023]
[1722104360767,0.00904188,68935.0,68934.0,0.023]
[1722104361179,0.07712979,68936.0,68934.0,0.023]
[1722104361600,0.07512979,68936.0,68934.0,0.023]
[1722104362008,0.29917611,68935.0,68934.0,0.023]
[1722104362212,0.29917611,68935.0,68929.0,0.023]
[1722104362213,0.145071,68932.0,68929.0,0.023]
[1722104362409,0.0796,68935.0,68929.0,0.023]
[1722104362608,0.36525379,68936.0,68922.0,0.290181]
[1722104362609,0.1444,68928.0,68922.0,0.290181]
[1722104362811,0.1444,68928.0,68924.0,0.145086]
[1722104363468,0.1444,68928.0,68920.0,0.29019]
[1722104363642,0.22021079,68927.0,68922.0,0.145091]
[1722104364686,0.145086,68925.0,68922.0,0.007]
[1722104364832,0.145083,68926.0,68923.0,0.023]
[1722104365035,0.145085,68925.0,68923.0,0.023]
[1722104365258,0.145085,68925.0,68922.0,0.023]
[1722104365660,0.43456,68928.0,68922.0,0.023]
[1722104365661,0.1444,68928.0,68922.0,0.023]
[1722104365863,0.1444,68928.0,68923.0,0.145088]
[1722104365864,0.289479,68928.0,68923.0,0.145088]
[1722104366061,0.145082,68927.0,68924.0,0.029]
[1722104366421,0.07512979,68926.0,68924.0,0.029]
[1722104366757,0.22021279,68926.0,68925.0,0.01331924]
[1722104366957,0.22021279,68926.0,68925.0,0.03631924]
[1722104367131,0.07512979,68926.0,68925.0,0.03631924]
[1722104367528,0.22021279,68926.0,68925.0,0.03631924]
[1722104367932,0.94432167,68926.0,68925.0,0.023]
[1722104368135,1.00472167,68926.0,68925.0,0.02231924]
[1722104368345,0.93914479,68926.0,68925.0,0.032]
[1722104368546,0.93914479,68926.0,68925.0,0.023]
[1722104368752,0.94014479,68926.0,68925.0,0.032]
[1722104368959,0.94014479,68926.0,68925.0,0.039]
[1722104369157,0.93914479,68926.0,68925.0,0.03]
[1722104369425,0.64897879,68926.0,68925.0,0.03]
[1722104369615,0.1386,68926.0,68925.0,0.03]
[1722104369818,0.283683,68926.0,68925.0,0.03]
[1722104370198,0.1386,68926.0,68925.0,0.04331924]
[1722104370399,0.283683,68926.0,68925.0,0.04331924]
[1722104370663,0.1396,68926.0,68925.0,0.04931924]
[1722104370805,0.1396,68926.0,68925.0,0.029]
[1722104371005,0.1396,68926.0,68925.0,0.04231924]
[1722104371177,0.283683,68926.0,68925.0,0.03631924]
[1722104371395,0.290683,68926.0,68925.0,0.03731924]
[1722104371828,0.290683,68926.0,68925.0,0.023]
[1722104372022,0.290683,68926.0,68925.0,0.01331924]
[1722104372023,0.1386,68926.0,68925.0,0.01331924]
[1722104372256,0.1406,68926.0,68925.0,0.023]
[1722104372498,0.285683,68926.0,68925.0,0.024]
[1722104372689,0.285683,68926.0,68925.0,0.01431924]
[1722104372850,0.575849,68926.0,68925.0,0.024]
[1722104373250,0.575849,68926.0,68925.0,0.001]
[1722104373552,0.573849,68926.0,68925.0,0.001]
[1722104373959,0.573849,68926.0,68925.0,0.002]
[1722104375152,1.2695962,68926.0,68925.0,0.002]
[1722104376583,1.2695962,68926.0,68925.0,0.001]
[1722104376969,1.2785962,68926.0,68925.0,0.002]
[1722104377215,1.2785962,68926.0,68925.0,0.001]
[1722104377411,0.435324,68914.0,68908.0,0.59589872]
[1722104377609,0.573924,68914.0,68908.0,0.59589872]
[1722104377923,0.573924,68914.0,68908.0,0.14512]
[1722104378068,0.573924,68914.0,68909.0,0.023]
[1722104378266,0.573924,68914.0,68912.0,0.145111]
[1722104378267,0.1386,68914.0,68912.0,0.145111]
[1722104378500,0.0782,68919.0,68916.0,0.145104]
[1722104378753,0.1386,68930.0,68927.0,0.145079]
[1722104378909,0.1386,68930.0,68928.0,0.023]
[1722104379097,0.51035879,68929.0,68928.0,0.03634194]
[1722104379307,0.80051179,68929.0,68928.0,0.03634194]
[1722104379512,0.51035879,68929.0,68928.0,0.023]
[1722104379707,0.145081,68927.0,68923.0,0.145088]
[1722104379949,0.145083,68926.0,68924.0,0.023]
[1722104380153,0.145081,68927.0,68924.0,0.01236017]
[1722104380357,0.145081,68927.0,68925.0,0.023]
[1722104380557,0.29016,68928.0,68925.0,0.023]
[1722104380769,0.435243,68927.0,68926.0,0.01318439]
[1722104380943,0.435243,68927.0,68926.0,0.03618439]
[1722104381248,0.445243,68927.0,68926.0,0.03618439]
[1722104381667,0.435243,68927.0,68926.0,0.03618439]
[1722104382045,0.439243,68927.0,68926.0,0.03618439]
[1722104384333,0.729405,68927.0,68926.0,0.03618439]
[1722104384827,0.729405,68927.0,68926.0,0.023]
[1722104385016,0.435255,68925.0,68924.0,0.001]
[1722104385499,0.44429816,68925.0,68924.0,0.001]
[1722104385741,0.435255,68925.0,68924.0,0.001]
[1722104386647,0.145089,68923.0,68920.0,0.023]
[1722104386860,0.07512979,68921.0,68920.0,0.023]
[1722104387083,0.07512979,68921.0,68920.0,0.168095]
[1722104387869,0.07512979,68921.0,68920.0,0.023]
[1722104388070,0.07512979,68921.0,68920.0,0.026]
[1722104388279,0.07512979,68921.0,68920.0,0.029]
[1722104390100,0.07512979,68921.0,68920.0,0.171095]
[1722104390365,0.07512979,68921.0,68920.0,0.026]
[1722104390815,0.07512979,68921.0,68920.0,0.028]
[1722104391327,0.22022279,68921.0,68920.0,0.023]
[1722104391557,0.22022279,68921.0,68920.0,0.150095]
[1722104391558,0.08417307,68921.0,68920.0,0.150095]
[1722104391778,0.08417307,68921.0,68920.0,0.005]
[1722104392007,0.145084,68926.0,68920.0,0.318191]
[1722104392229,0.145084,68926.0,68922.0,0.145089]
[1722104392230,0.00904304,68925.0,68922.0,0.145089]
[1722104392463,0.00904304,68925.0,68923.0,0.023]
[1722104392909,0.15412804,68925.0,68921.0,0.145093]
[1722104393134,0.00904304,68924.0,68921.0,0.145093]
[1722104393368,0.00904304,68924.0,68923.0,0.435267]
[1722104393615,0.22020679,68929.0,68923.0,0.0617]
[1722104393846,0.22020679,68929.0,68925.0,0.145084]
[1722104394073,0.0090427,68928.0,68925.0,0.145084]
[1722104394293,0.0090427,68928.0,68926.0,0.01317872]
[1722104394497,0.1541217,68928.0,68926.0,0.00917872]
[1722104394709,0.1541217,68928.0,68924.0,0.145085]
[1722104394710,0.0090427,68927.0,68924.0,0.145085]
[1722104394895,0.0090427,68927.0,68925.0,0.023]
[1722104395520,0.0090427,68926.0,68924.0,0.023]
[1722104396062,0.0090427,68925.0,68924.0,0.168086]
[1722104396463,0.0090427,68927.0,68924.0,0.168086]
[1722104396716,0.0090427,68926.0,68925.0,0.01251661]
[1722104397021,0.435249,68926.0,68925.0,0.03551661]
[1722104397367,0.15412615,68926.0,68925.0,0.03551661]
[1722104397959,0.15412619,68926.0,68925.0,0.03551661]
[1722104398469,0.73445819,68926.0,68925.0,0.03551661]
[1722104398688,0.80045819,68926.0,68925.0,0.023]
[1722104398895,0.14509,68923.0,68921.0,0.001]
[1722104399107,0.08417298,68922.0,68921.0,0.001]
[1722104400397,0.89213011,68922.0,68921.0,0.001]
[1722104400598,0.60194711,68922.0,68921.0,0.001]
[1722104401347,0.60194711,68922.0,68921.0,0.006]
[1722104401557,0.60194711,68922.0,68921.0,0.028]
[1722104401981,0.60194711,68922.0,68921.0,0.024]
[1722104402354,0.60194711,68922.0,68921.0,0.026]
[1722104402791,0.60194757,68922.0,68921.0,0.026]
[1722104402922,0.60194757,68922.0,68921.0,0.028]
[1722104403123,0.00904378,68922.0,68921.0,0.028]
[1722104403323,0.00904378,68923.0,68921.0,0.028]
[1722104403523,0.290173,68925.0,68921.0,0.026]
[1722104403524,0.15413478,68922.0,68921.0,0.026]
[1722104403707,0.22926457,68922.0,68921.0,0.024]
[1722104404339,0.22926457,68922.0,68921.0,0.025]
[1722104404736,0.22926457,68922.0,68921.0,0.024]
[1722104404958,0.22926457,68922.0,68921.0,0.001]
[1722104405920,0.08417357,68922.0,68921.0,0.001]
[1722104406746,0.07512979,68922.0,68921.0,0.001]
[1722104406946,0.22926375,68922.0,68921.0,0.001]
[1722104408534,1.27264716,68922.0,68921.0,0.001]
[1722104408738,1.24061275,68922.0,68921.0,0.001]
[1722104409119,1.23156979,68922.0,68921.0,0.001]
[1722104409318,1.24061393,68922.0,68921.0,0.001]
[1722104412046,1.37130193,68922.0,68921.0,0.001]
[1722104412447,1.38182936,68922.0,68921.0,0.001]
[1722104412648,1.52151713,68922.0,68921.0,0.001]
[1722104412961,1.390874,68922.0,68921.0,0.001]
[1722104415704,1.39087406,68922.0,68921.0,0.001]
[1722104416091,1.31574427,68922.0,68921.0,0.001]
[1722104418478,2.28967948,68922.0,68921.0,0.001]
[1722104418691,2.28967948,68922.0,68920.0,0.000924]
[1722104418692,1.446641,68921.0,68920.0,1e-06]
[1722104418905,1.446641,68921.0,68913.0,0.000924]
[1722104418906,0.576124,68914.0,68913.0,0.000924]
[1722104419102,2.10903584,68914.0,68913.0,0.000924]
[1722104419526,2.15263896,68914.0,68913.0,0.000924]
[1722104419947,1.63492296,68914.0,68913.0,0.000924]
[1722104420106,1.63492296,68914.0,68913.0,0.001924]
[1722104420442,1.26560312,68914.0,68913.0,0.000924]
[1722104420605,0.08584712,68914.0,68913.0,0.001924]
[1722104420805,0.00904712,68914.0,68913.0,0.208134]
[1722104421138,0.001,68914.0,68913.0,0.07566184]
[1722104421498,0.436324,68914.0,68913.0,0.07666184]
[1722104421620,0.436324,68914.0,68913.0,0.063024]
[1722104421824,0.436324,68914.0,68913.0,0.07566184]
[1722104422246,0.72654,68914.0,68913.0,0.063024]
[1722104422448,0.72554,68914.0,68913.0,0.062024]
[1722104422668,0.438324,68914.0,68913.0,0.063024]
[1722104422905,0.438324,68914.0,68913.0,0.07566184]
[1722104423088,0.439324,68914.0,68913.0,0.07566184]
[1722104423267,0.435324,68914.0,68913.0,0.07466184]
[1722104423668,0.435324,68914.0,68913.0,0.07566184]
[1722104425244,0.16373413,68921.0,68913.0,0.07566184]
[1722104425245,0.08693413,68921.0,68913.0,0.07566184]
[1722104425438,0.07256305,68927.0,68919.0,0.145097]
[1722104425439,0.00904409,68920.0,68919.0,0.145097]
[1722104425615,0.14509,68923.0,68919.0,0.023]
[1722104425818,0.14509,68923.0,68919.0,0.01260424]
[1722104426020,0.23885661,68929.0,68920.0,0.023]
[1722104426021,0.145091,68922.0,68920.0,0.023]
[1722104426228,0.23885661,68929.0,68923.0,0.145089]
[1722104426397,0.00904336,68928.0,68924.0,0.023]
[1722104426720,0.0090433,68927.0,68924.0,0.03358144]
[1722104427078,0.1541243,68927.0,68924.0,0.03358144]
[1722104427289,0.0090433,68926.0,68924.0,0.03358144]
[1722104427492,0.0090433,68926.0,68925.0,0.145085]
[1722104427697,0.0090433,68926.0,68925.0,0.15765244]
[1722104428077,0.003,68927.0,68925.0,0.15765244]
[1722104428291,0.0090433,68926.0,68925.0,0.15765144]
[1722104428508,0.003,68927.0,68926.0,0.145083]
[1722104428757,0.003,68927.0,68926.0,0.15764569]
[1722104429280,0.003,68927.0,68926.0,0.47081169]
[1722104429493,0.003,68927.0,68926.0,1.19944369]
[1722104430149,0.00384,68927.0,68926.0,1.19744369]
[1722104430611,0.00084,68927.0,68926.0,1.19744369]
[1722104430792,0.00084,68927.0,68926.0,1.20744369]
[1722104431142,0.00084,68927.0,68926.0,0.90727769]
[1722104431345,0.00084,68927.0,68926.0,0.92027769]
[1722104431579,0.00084,68927.0,68926.0,1.21044369]
[1722104431871,0.00084,68927.0,68926.0,1.22044369]
[1722104432851,0.00084,68927.0,68926.0,1.21044369]
[1722104433276,0.00084,68927.0,68926.0,1.22144369]
[1722104437232,0.00084,68927.0,68926.0,0.93127769]
[1722104438588,0.00084,68927.0,68926.0,0.64111169]
[1722104438788,0.00084,68927.0,68926.0,0.12576269]
[1722104438915,0.00084,68927.0,68926.0,0.27084569]
[1722104439327,0.00084,68927.0,68926.0,0.12576269]
[1722104439645,0.516883,68927.0,68926.0,0.05956269]
[1722104439844,0.516883,68927.0,68926.0,0.03656269]
[1722104439845,0.807045,68927.0,68926.0,0.03656269]
[1722104440057,0.226721,68927.0,68926.0,0.024]
[1722104440267,0.08164,68927.0,68926.0,0.024]
[1722104440452,0.08164,68927.0,68926.0,0.03502327]
[1722104440453,0.00084,68927.0,68926.0,0.03502327]
[1722104440651,0.00084,68927.0,68926.0,0.15610627]
[1722104441057,0.00084,68927.0,68926.0,0.54547227]
[1722104441259,0.00084,68927.0,68926.0,0.25530627]
[1722104442268,0.00084,68927.0,68926.0,0.83563827]
[1722104442672,0.00084,68927.0,68926.0,1.12580427]
[1722104443198,0.00084,68927.0,68926.0,0.83563827]
[1722104445364,0.07512979,68936.0,68932.0,0.14507]
[1722104445567,0.07512979,68936.0,68933.0,0.023]
[1722104445568,0.22019179,68936.0,68933.0,0.023]
[1722104445766,0.22019179,68936.0,68933.0,0.03400634]
[1722104445970,0.145064,68935.0,68933.0,0.03400634]
[1722104446296,0.00131126,68934.0,68933.0,0.03400634]
[1722104446451,0.145066,68934.0,68933.0,0.03400634]
[1722104447113,0.0808,68934.0,68933.0,0.03400634]
[1722104447479,0.225866,68934.0,68933.0,0.03400634]
[1722104447999,0.227866,68934.0,68933.0,0.03400634]
[1722104448222,0.228866,68934.0,68933.0,0.03400634]
[1722104449341,0.518998,68934.0,68933.0,0.03400634]
[1722104449564,0.518998,68934.0,68933.0,0.023]
[1722104449783,0.228866,68934.0,68929.0,0.168075]
[1722104450230,0.228866,68934.0,68930.0,0.01101338]
[1722104450414,0.228866,68934.0,68931.0,0.023]
[1722104450765,0.002,68934.0,68933.0,0.145068]
[1722104450973,0.07512979,68936.0,68933.0,0.168066]
[1722104451171,0.001,68934.0,68933.0,0.07740505]
[1722104451373,0.146066,68934.0,68933.0,0.10040505]
[1722104451628,0.145066,68934.0,68933.0,0.10040505]
[1722104451847,0.145066,68934.0,68933.0,0.10140505]
[1722104452049,0.145064,68935.0,68933.0,0.10140505]
[1722104452294,0.435192,68935.0,68934.0,0.023]
[1722104452493,0.435192,68935.0,68934.0,0.0340027]
[1722104452901,0.435192,68935.0,68934.0,0.023]
[1722104453103,0.145066,68934.0,68933.0,0.001]
[1722104453302,0.145068,68933.0,68929.0,0.023]
[1722104453504,0.145068,68933.0,68930.0,0.01101208]
[1722104453705,0.145068,68933.0,68931.0,0.023]
[1722104454038,0.145066,68934.0,68932.0,0.01100739]
[1722104454270,0.15411021,68933.0,68932.0,0.01100739]
[1722104454446,0.15665292,68933.0,68932.0,0.03400739]
[1722104454602,0.15611021,68933.0,68932.0,0.03400739]
[1722104454801,0.15511021,68933.0,68932.0,0.03400739]
[1722104455000,0.44524622,68933.0,68932.0,0.03400739]
[1722104455624,0.44424622,68933.0,68932.0,0.03400739]
[1722104455822,0.87948222,68933.0,68932.0,0.03400739]
[1722104456023,0.87948222,68933.0,68932.0,0.023]
[1722104456383,0.145073,68931.0,68927.0,0.023]
[1722104456603,0.73441422,68933.0,68927.0,0.023]
[1722104456604,0.22020779,68928.0,68927.0,0.023]
[1722104456808,0.145081,68927.0,68923.0,0.168088]
[1722104456992,0.00904222,68926.0,68923.0,0.168088]
[1722104457392,0.15412522,68926.0,68923.0,0.023]
[1722104457537,0.145083,68926.0,68923.0,0.023]
[1722104458140,0.145081,68927.0,68923.0,0.023]
[1722104458379,0.00904271,68926.0,68923.0,0.023]
[1722104458706,0.01059691,68926.0,68923.0,0.036]
[1722104458821,0.1466372,68926.0,68923.0,0.036]
[1722104459027,0.0015542,68926.0,68923.0,0.181089]
[1722104459224,0.0015542,68926.0,68924.0,0.435261]
[1722104459225,0.00904271,68925.0,68924.0,0.435261]
[1722104459454,0.07512979,68928.0,68925.0,0.145085]
[1722104459653,0.07512979,68928.0,68926.0,0.023]
[1722104459913,0.00904238,68927.0,68926.0,0.023]
[1722104460156,0.00904238,68927.0,68924.0,0.023]